bitfinex/quotes_SOLUSD_20240822
["timestamp","ask_amount","ask_price","bid_price","bid_amount"]
[1724295636419,45.904,141.72,141.67,24.7047]
[1724295636925,45.904,141.72,141.67,7.0586]
[1724295637123,45.904,141.72,141.68,14.80149888]
[1724295637292,45.904,141.72,141.69,8.46845676]
[1724295637603,45.904,141.72,141.71,7.0566]
[1724295638020,30.0,141.72,141.71,7.0566]
[1724295638322,30.0,141.72,141.71,8.46780966]
[1724295638508,30.0,141.72,141.71,7.0566]
[1724295638820,16.3416,141.76,141.72,7.0558]
[1724295639431,16.3416,141.76,141.73,7.0555]
[1724295639725,30.0,141.74,141.73,7.0555]
[1724295641605,30.0,141.74,141.72,7.0561]
[1724295642613,30.0,141.75,141.72,7.0561]
[1724295643137,30.0,141.75,141.71,7.0565]
[1724295643704,30.0,141.75,141.7,17.6425]
[1724295643705,30.0,141.75,141.72,7.0559]
[1724295644612,30.0,141.75,141.73,7.0556]
[1724295644817,30.0,141.74,141.73,7.0556]
[1724295645504,30.0,141.74,141.71,1.41105616]
[1724295646912,30.0,141.74,141.73,7.0556]
[1724295647319,30.0,141.74,141.7,17.6425]
[1724295647627,16.3416,141.76,141.72,7.0557]
[1724295649910,29.7316,141.76,141.71,7.0565]
[1724295650334,36.7858,141.76,141.71,7.0565]
[1724295650701,36.7858,141.76,141.7,24.6995]
[1724295650931,0.12549,141.75,141.7,24.6995]
[1724295651229,7.18019,141.75,141.7,24.6995]
[1724295653347,13.39,141.74,141.7,24.6995]
[1724295653630,7.0562,141.72,141.67,24.7047]
[1724295653833,20.4462,141.72,141.67,24.7047]
[1724295655406,30.0,141.71,141.67,24.7047]
[1724295655615,37.0569,141.71,141.67,17.6462]
[1724295655906,30.0,141.71,141.67,24.7048]
[1724295657938,21.8707,141.7,141.64,7.0597]
[1724295658120,30.0,141.68,141.65,7.0595]
[1724295659233,30.0,141.68,141.64,7.0601]
[1724295660114,0.12549,141.67,141.63,24.7114]
[1724295660322,50.57409,141.67,141.63,17.6508]
[1724295661344,20.57409,141.67,141.63,17.6508]
[1724295662140,20.57409,141.67,141.63,24.7114]
[1724295662141,13.39,141.67,141.63,24.7114]
[1724295662644,7.37319936,141.68,141.63,17.6508]
[1724295662814,21.8707,141.7,141.63,17.6508]
[1724295664048,28.9279,141.7,141.65,7.0596]
[1724295665429,7.0576,141.69,141.65,7.0596]
[1724295665829,7.0576,141.69,141.64,7.06]
[1724295666415,21.8707,141.7,141.65,17.6481]
[1724295666613,21.8707,141.7,141.69,7.0576]
[1724295666614,15.2849,141.7,141.69,7.0576]
[1724295666847,30.0,141.7,141.69,7.0576]
[1724295667227,30.0,141.7,141.67,17.6458]
[1724295667419,30.0,141.7,141.67,24.7042]
[1724295667643,29.3682,141.73,141.67,17.6458]
[1724295667832,15.9782,141.73,141.69,17.6431]
[1724295668162,15.9782,141.73,141.72,7.0561]
[1724295668318,15.9782,141.73,141.71,7.0565]
[1724295668319,45.9782,141.73,141.71,7.0565]
[1724295668940,45.9782,141.73,141.7,1.41137285]
[1724295669365,30.0,141.72,141.7,1.41137285]
[1724295669951,30.0,141.72,141.7,8.46837285]
[1724295670158,15.9782,141.73,141.7,8.46837285]
[1724295670335,15.9782,141.73,141.7,7.057]
[1724295670761,15.9782,141.73,141.71,7.0565]
[1724295670962,13.39,141.76,141.72,7.056]
[1724295674261,20.4442,141.76,141.71,24.6972]
[1724295675363,7.0547,141.75,141.71,17.6407]
[1724295675672,13.39,141.74,141.71,17.6407]
[1724295676679,13.39,141.74,141.71,24.6973]
[1724295677569,20.4442,141.76,141.71,24.6973]
[1724295679855,7.0547,141.75,141.71,17.6407]
[1724295680043,13.39,141.74,141.71,17.6407]
[1724295680670,20.4452,141.74,141.69,7.0574]
[1724295680862,13.39,141.72,141.69,7.0574]
[1724295682550,30.0,141.71,141.69,7.0574]
[1724295685293,53.56,141.69,141.54,22.5619]
[1724295685479,7.0591,141.66,141.55,13.39]
[1724295685662,13.39,141.64,141.55,13.39]
[1724295686789,13.39,141.62,141.59,17.6561]
[1724295687083,15.0686,141.64,141.59,24.7183]
[1724295687084,30.0,141.63,141.59,24.7183]
[1724295690774,30.0,141.63,141.6,7.0621]
[1724295691981,30.0,141.63,141.61,7.0614]
[1724295692190,7.3668318,141.64,141.61,8.47363177]
[1724295692487,7.3668318,141.64,141.61,7.0614]
[1724295693365,20.7568318,141.64,141.61,7.0614]
[1724295693565,20.7568318,141.64,141.59,24.7182]
[1724295696783,20.7568318,141.64,141.58,7.0631]
[1724295696989,13.39,141.62,141.58,7.0631]
[1724295697795,30.0,141.61,141.58,7.0631]
[1724295699899,30.0,141.61,141.57,7.0635]
[1724295700080,43.39,141.61,141.57,7.0635]
[1724295700791,50.4516,141.61,141.57,7.0635]
[1724295703796,50.4516,141.61,141.56,24.7239]
[1724295704766,30.0,141.61,141.57,8.47619819]
[1724295704969,30.0,141.61,141.58,1.41244532]
[1724295706872,30.0,141.61,141.57,7.0636]
[1724295707103,30.0,141.61,141.58,17.6572]
[1724295708229,43.39,141.61,141.57,7.0635]
[1724295709799,50.4516,141.61,141.57,7.0635]
[1724295711186,7.0626,141.59,141.55,17.6609]
[1724295711392,30.0,141.58,141.55,17.6609]
[1724295713007,30.0,141.58,141.55,24.7255]
[1724295716110,30.0,141.58,141.57,7.0636]
[1724295717188,23.70001768,141.62,141.58,7.063]
[1724295717428,30.0,141.59,141.58,7.063]
[1724295718087,23.70001768,141.62,141.58,7.063]
[1724295719610,37.09001768,141.62,141.58,7.063]
[1724295719791,30.0,141.59,141.58,7.063]
[1724295723710,37.09001768,141.62,141.58,7.063]
[1724295725796,13.39,141.6,141.57,7.0635]
[1724295726111,13.39,141.6,141.56,7.064]
[1724295726309,14.41611768,141.62,141.57,7.0636]
[1724295726496,14.41611768,141.62,141.58,1.41243179]
[1724295726818,30.0,141.59,141.57,7.0635]
[1724295728024,30.0,141.59,141.56,7.064]
[1724295729201,43.39,141.59,141.55,24.7254]
[1724295731194,30.0,141.59,141.56,7.064]
[1724295733108,30.0,141.59,141.56,8.47661642]
[1724295735015,30.0,141.59,141.57,17.658]
[1724295735189,30.0,141.59,141.58,1.41249044]
[1724295735394,7.35491768,141.62,141.58,8.47519044]
[1724295735817,7.35491768,141.62,141.6,7.0618]
[1724295736124,30.0,141.61,141.6,8.47403132]
[1724295737608,30.0,141.61,141.59,24.7184]
[1724295738125,30.0,141.61,141.59,22.2184]
[1724295738620,30.0,141.61,141.59,15.1559]
[1724295741127,30.0,141.61,141.59,23.63076621]
[1724295741303,7.35491768,141.62,141.59,23.63076621]
[1724295744607,7.35491768,141.62,141.59,8.47486621]
[1724295745022,7.35491768,141.62,141.6,1.41223841]
[1724295745431,7.35491768,141.62,141.59,7.0623]
[1724295746809,7.35491768,141.62,141.6,7.062]
[1724295747115,7.35491768,141.62,141.6,7.0621]
[1724295749314,7.35491768,141.62,141.61,7.0616]
[1724295749529,7.35491768,141.62,141.59,17.6559]
[1724295750421,7.35491768,141.62,141.6,8.47429679]
[1724295750807,7.35491768,141.62,141.61,7.0616]
[1724295759511,6.1987,141.66,141.61,7.0616]
[1724295761245,6.1987,141.66,141.62,8.47311357]
[1724295761445,7.0596,141.65,141.61,17.6529]
[1724295761617,13.39,141.62,141.52,2.28364764]
[1724295761819,7.0631,141.58,141.53,7.0651]
[1724295762421,7.0626,141.59,141.54,13.39]
[1724295762842,7.0626,141.59,141.54,20.4549]
[1724295765744,6.0507,141.61,141.56,13.39]
[1724295766050,59.2379,141.63,141.54,13.39]
[1724295766221,7.0622,141.6,141.56,17.6595]
[1724295766645,7.0617,141.61,141.56,24.7235]
[1724295767441,7.0617,141.61,141.57,1.41263566]
[1724295768455,7.0621,141.6,141.57,1.41263566]
[1724295768740,7.0617,141.61,141.57,1.41263566]
[1724295770145,7.0621,141.6,141.56,17.6595]
[1724295770654,7.0632,141.58,141.53,31.0537]
[1724295770825,13.39,141.61,141.53,31.0537]
[1724295771147,13.39,141.61,141.54,1.41276676]
[1724295771465,7.062,141.61,141.56,7.0641]
[1724295771664,7.062,141.61,141.57,1.41257572]
[1724295771950,30.0,141.58,141.57,1.41257572]
[1724295772153,7.062,141.61,141.56,8.47670599]
[1724295774539,7.0621,141.6,141.56,1.41260599]
[1724295775749,7.0621,141.6,141.55,7.0645]
[1724295776257,7.0621,141.6,141.56,1.41267052]
[1724295777263,7.0616,141.61,141.56,8.47677052]
[1724295779033,7.0622,141.6,141.55,24.7251]
[1724295780250,13.39,141.59,141.5,6.6573]
[1724295780438,37.0637,141.57,141.49,28.7886]
[1724295780641,37.0637,141.57,141.5,20.0]
[1724295780853,59.2835,141.57,141.47,6.4572]
[1724295781059,59.2835,141.57,141.48,13.39]
[1724295781758,7.0653,141.54,141.49,17.669]
[1724295781941,7.0646,141.56,141.49,17.669]
[1724295782664,59.2835,141.57,141.49,17.669]
[1724295782873,20.4551,141.55,141.48,7.068]
[1724295783218,13.39,141.55,141.48,7.068]
[1724295783535,7.0647,141.55,141.49,7.0676]
[1724295785051,45.8935,141.57,141.49,7.0676]
[1724295785052,66.3476,141.57,141.5,7.067]
[1724295785439,30.0,141.53,141.5,7.067]
[1724295786876,30.0,141.53,141.51,7.0665]
[1724295787162,22.9576,141.57,141.52,1.41314292]
[1724295787355,15.8935,141.57,141.52,8.47914292]
[1724295789745,15.7898,141.61,141.54,17.6627]
[1724295790045,22.8518,141.61,141.56,7.064]
[1724295790965,7.37051929,141.6,141.56,7.064]
[1724295791367,7.37051929,141.6,141.55,7.0646]
[1724295793574,33.61231929,141.61,141.55,7.0646]
[1724295795888,33.61231929,141.61,141.54,17.6627]
[1724295795889,20.453,141.59,141.54,24.7277]
[1724295796063,13.39,141.59,141.54,17.6627]
[1724295796571,7.0632,141.58,141.54,17.6627]
[1724295796759,7.0627,141.59,141.54,24.7277]
[1724295797069,7.0622,141.6,141.55,7.0641]
[1724295797876,7.0627,141.59,141.54,24.7277]
[1724295799461,20.4527,141.59,141.54,24.7277]
[1724295799662,7.0627,141.59,141.54,24.7277]
[1724295800562,20.4521,141.6,141.55,7.0645]
[1724295801168,7.0626,141.59,141.55,7.0645]
[1724295801873,7.0626,141.59,141.54,24.7277]
[1724295805058,7.0631,141.58,141.54,17.6627]
[1724295805259,13.39,141.58,141.51,17.6662]
[1724295805584,0.12549,141.57,141.51,17.6662]
[1724295805770,0.12549,141.57,141.52,7.066]
[1724295805771,7.0637,141.57,141.52,7.066]
[1724295807692,20.453,141.59,141.52,1.41297434]
[1724295807858,20.453,141.59,141.54,7.0649]
[1724295808492,7.0632,141.58,141.54,7.0649]
[1724295809779,7.0632,141.58,141.53,7.0655]
[1724295810158,6.49808857,141.58,141.53,7.0655]
[1724295810974,7.0627,141.59,141.54,7.065]
[1724295811184,7.0627,141.59,141.54,8.47781163]
[1724295811705,7.0627,141.59,141.54,7.065]
[1724295812894,7.0631,141.58,141.54,7.065]
[1724295813894,7.0627,141.59,141.54,7.065]
[1724295815293,20.4533,141.58,141.53,24.7289]
[1724295815665,13.39,141.58,141.5,17.6673]
[1724295815883,7.0646,141.55,141.51,7.0665]
[1724295816374,7.36979638,141.59,141.52,19.07758159]
[1724295816585,7.36979638,141.59,141.52,17.6644]
[1724295816586,20.75979638,141.59,141.52,17.6644]
[1724295817393,7.0632,141.58,141.53,7.0655]
[1724295817613,7.0636,141.57,141.53,7.0655]
[1724295819070,13.39,141.59,141.54,7.0648]
[1724295819071,7.0631,141.59,141.54,7.0648]
[1724295821309,7.0631,141.58,141.54,7.0648]
[1724295821838,7.0637,141.57,141.53,7.0655]
[1724295822111,7.0652,141.54,141.5,7.0669]
[1724295822360,7.0652,141.54,141.49,24.736]
[1724295823487,7.0656,141.53,141.49,17.6685]
[1724295823705,20.4562,141.52,141.47,16.655]
[1724295823891,7.0666,141.51,141.46,25.5913023]
[1724295824222,7.0666,141.51,141.46,18.5222023]
[1724295827611,7.0666,141.51,141.46,25.5913023]
[1724295829283,7.0666,141.51,141.46,18.5222023]
[1724295829514,15.1217,141.5,141.46,0.8497023]
[1724295829808,7.0686,141.47,141.46,0.8497023]
[1724295831104,7.31958,141.47,141.46,0.8497023]
[1724295831310,7.19409,141.47,141.46,0.8497023]
[1724295831481,14.43998479,141.47,141.46,0.8497023]
[1724295832718,7.0686,141.47,141.46,0.8497023]
[1724295833091,7.37118776,141.47,141.46,0.8497023]
[1724295835090,14.43978776,141.47,141.46,0.8497023]
[1724295835602,7.37118776,141.47,141.46,0.8497023]
[1724295838020,20.4561,141.52,141.47,7.0685]
[1724295838192,16.5078,141.53,141.47,1.41350232]
[1724295838193,23.87601954,141.53,141.47,1.41350232]
[1724295838412,20.4552,141.54,141.49,7.0675]
[1724295838615,14.00672022,141.55,141.49,17.6688]
[1724295838804,6.6394,141.55,141.49,17.6688]
[1724295839908,7.0646,141.55,141.5,7.067]
[1724295842216,20.4551,141.54,141.49,24.7363]
[1724295842809,7.0656,141.53,141.49,17.6688]
[1724295843320,7.0663,141.52,141.46,7.9183023]
[1724295843616,13.39,141.54,141.49,7.0671]
[1724295844203,13.39,141.54,141.5,7.0669]
[1724295844412,20.4553,141.54,141.49,7.0675]
[1724295844710,7.0656,141.53,141.48,24.7372]
[1724295845729,20.455,141.55,141.5,7.067]
[1724295845901,7.0652,141.54,141.49,7.0675]
[1724295846821,13.39,141.55,141.48,24.7372]
[1724295846822,7.0657,141.53,141.48,24.7372]
[1724295847170,7.0651,141.54,141.49,7.0675]
[1724295849622,13.64098,141.53,141.47,7.0685]
[1724295849925,13.51549,141.53,141.47,7.0685]
[1724295850107,7.0662,141.52,141.47,7.0685]
[1724295851513,30.0,141.5,141.47,8.48198963]
[1724295853606,30.0,141.5,141.47,32.47408963]
[1724295853811,7.36965171,141.54,141.47,32.47408963]
[1724295854006,13.39,141.56,141.47,31.0606]
[1724295854218,20.75796927,141.56,141.47,31.0606]
[1724295854824,7.0652,141.54,141.49,7.0676]
[1724295855029,20.4552,141.54,141.49,7.0676]
[1724295855833,7.0656,141.53,141.49,7.0676]
[1724295857711,7.0656,141.53,141.48,7.068]
[1724295858928,13.39,141.52,141.47,24.7391]
[1724295859821,7.0667,141.51,141.47,24.7391]
[1724295860042,20.4561,141.52,141.47,24.7391]
[1724295863921,7.0661,141.52,141.48,1.41356968]
[1724295864543,7.0661,141.52,141.47,24.7391]
[1724295864935,14.43142493,141.54,141.48,1.41344703]
[1724295865238,7.0656,141.53,141.48,7.0677]
[1724295867614,20.75523008,141.56,141.49,19.08172001]
[1724295867820,7.0646,141.55,141.5,7.067]
[1724295868023,7.0646,141.55,141.51,7.0665]
[1724295870139,14.42933008,141.56,141.51,7.0665]
[1724295870349,14.42933008,141.56,141.51,8.47958038]
[1724295870842,14.42933008,141.56,141.51,7.0665]
[1724295872040,14.42933008,141.56,141.52,1.41307014]
[1724295872239,14.42933008,141.56,141.51,7.0665]
[1724295876449,14.42933008,141.56,141.52,7.066]
[1724295877147,7.36523008,141.56,141.53,7.0656]
[1724295879143,7.36523008,141.56,141.54,1.41289265]
[1724295879347,7.0627,141.59,141.54,8.47789265]
[1724295879529,7.0627,141.59,141.55,1.41274123]
[1724295880140,7.0627,141.59,141.54,7.065]
[1724295883066,7.0627,141.59,141.53,17.6635]
[1724295883067,13.39,141.61,141.55,7.0644]
[1724295884268,7.0622,141.6,141.55,7.0644]
[1724295884427,7.0622,141.6,141.56,1.41261339]
[1724295884751,7.0622,141.6,141.55,7.0644]
[1724295885049,19.8286,141.59,141.46,0.8497023]
[1724295885232,20.455,141.55,141.5,7.067]
[1724295885426,13.39,141.55,141.51,7.0666]
[1724295885646,20.4547,141.55,141.51,7.0666]
[1724295885838,7.0642,141.56,141.51,7.0666]
[1724295886134,7.0642,141.56,141.51,8.47963581]
[1724295886753,7.0642,141.56,141.52,1.41303619]
[1724295887654,7.0637,141.57,141.52,8.47903619]
[1724295887850,13.80058815,141.62,141.56,7.0641]
[1724295888054,13.80058815,141.62,141.53,13.39]
[1724295888055,7.0622,141.6,141.55,7.0646]
[1724295888230,7.0622,141.6,141.56,1.41266243]
[1724295888756,27.19058815,141.62,141.56,1.41266243]
[1724295888757,7.0627,141.59,141.56,1.41266243]
[1724295889080,7.0622,141.6,141.56,1.41266243]
[1724295890136,7.0626,141.59,141.56,1.41266243]
[1724295892036,7.0622,141.6,141.56,1.41266243]
[1724295892565,7.0617,141.61,141.56,8.47676243]
[1724295893346,7.36198815,141.62,141.57,7.0636]
[1724295893544,14.42308815,141.62,141.58,8.4754183]
[1724295893752,7.36198815,141.62,141.58,8.4754183]
[1724295894145,7.36198815,141.62,141.59,52.0623]
[1724295894364,7.36198815,141.62,141.6,1.41217447]
[1724295895360,7.36198815,141.62,141.6,8.47407447]
[1724295895540,7.36198815,141.62,141.6,1.41217447]
[1724295895861,20.4502,141.64,141.6,1.41217447]
[1724295896662,7.0602,141.64,141.6,1.41217447]
[1724295898039,7.0602,141.64,141.59,52.0625]
[1724295900162,7.37142695,141.66,141.61,17.6537]
[1724295900360,7.37142695,141.66,141.61,24.7149]
[1724295901159,14.43052695,141.66,141.61,24.7149]
[1724295902143,7.0598,141.65,141.61,17.6537]
[1724295902570,7.0602,141.64,141.59,51.4379]
[1724295903141,7.0602,141.64,141.59,58.5]
[1724295903386,7.0602,141.64,141.6,7.0621]
[1724295904182,27.82082695,141.66,141.61,7.0615]
[1724295904364,14.43082695,141.66,141.61,52.0615]
[1724295904888,7.0615,141.62,141.57,7.0632]
[1724295905179,7.0607,141.63,141.58,20.4531]
[1724295906075,7.0607,141.63,141.59,1.41227223]
[1724295906581,7.0607,141.63,141.6,1.41226963]
[1724295907745,7.0607,141.63,141.59,52.0626]
[1724295908663,7.06,141.65,141.59,45.0]
[1724295908869,7.0601,141.64,141.59,52.0625]
[1724295909367,7.0601,141.64,141.6,1.41215353]
[1724295909761,7.0596,141.65,141.61,1.41215357]
[1724295910056,7.0596,141.65,141.6,7.062]
[1724295910691,7.0612,141.62,141.58,17.6568]
[1724295911179,7.0607,141.63,141.58,17.6568]
[1724295911548,7.0601,141.65,141.59,7.0624]
[1724295912352,37.39692695,141.66,141.59,7.0624]
[1724295912353,14.43092695,141.66,141.6,1.41214509]
[1724295912553,14.43092695,141.66,141.61,7.0615]
[1724295912756,7.0597,141.65,141.59,13.4996]
[1724295913466,7.0601,141.64,141.59,13.4996]
[1724295914182,7.0597,141.65,141.6,8.4742454]
[1724295914357,14.43062695,141.66,141.61,8.47357553]
[1724295914550,7.37142695,141.66,141.61,8.47357553]
[1724295914751,7.37142695,141.66,141.61,7.0615]
[1724295915085,7.37142695,141.66,141.62,1.41207577]
[1724295915249,7.37142695,141.66,141.62,8.47307577]
[1724295915449,21.7299,141.77,141.65,19.2752]
[1724295915666,13.39,141.74,141.65,19.2752]
[1724295915865,13.39,141.7,141.62,44.2114]
[1724295916075,13.39,141.72,141.64,13.39]
[1724295916281,7.057,141.71,141.64,13.39]
[1724295916459,7.057,141.71,141.65,7.0595]
[1724295916776,7.0588,141.67,141.62,13.1694]
[1724295916966,7.0577,141.69,141.64,7.06]
[1724295917171,28.7912,141.71,141.63,31.0407]
[1724295917477,24.3017,141.74,141.65,31.0382]
[1724295917657,37.6917,141.74,141.66,1.41147286]
[1724295917853,7.0559,141.73,141.66,1.41147286]
[1724295918184,20.0536,141.74,141.66,1.41147286]
[1724295918361,20.0536,141.74,141.66,46.41147286]
[1724295918552,13.39,141.72,141.65,17.6482]
[1724295918750,13.39,141.7,141.65,17.6482]
[1724295919558,7.0573,141.7,141.65,24.7074]
[1724295919852,7.0567,141.71,141.65,24.7074]
[1724295920056,7.0567,141.71,141.66,21.86043036]
[1724295920468,7.0567,141.71,141.66,20.4489]
[1724295920773,20.0536,141.74,141.67,8.46993996]
[1724295920774,7.0561,141.73,141.67,8.46993996]
[1724295920954,20.0536,141.74,141.68,1.41135884]
[1724295921154,7.0561,141.72,141.68,1.41135884]
[1724295921567,7.0561,141.72,141.67,7.0585]
[1724295922872,7.0561,141.72,141.65,17.6482]
[1724295922873,7.0572,141.7,141.65,24.7074]
[1724295923061,20.4472,141.7,141.65,24.7074]
[1724295923576,7.0567,141.71,141.66,8.47054064]
[1724295923960,7.0567,141.71,141.66,7.0589]
[1724295925066,13.39,141.7,141.66,7.0589]
[1724295925858,13.39,141.68,141.61,6.576]
[1724295926176,13.39,141.66,141.63,7.0602]
[1724295926380,17.76539,141.73,141.64,7.06]
[1724295926693,13.39,141.68,141.64,7.0601]
[1724295927065,20.4482,141.68,141.63,7.0605]
[1724295927467,13.39,141.68,141.63,7.0605]
[1724295927663,13.39,141.66,141.62,17.6525]
[1724295927855,20.4492,141.66,141.62,17.6525]
[1724295928984,7.0596,141.65,141.6,7.0621]
[1724295929176,13.39,141.64,141.6,7.0621]
[1724295929381,7.0591,141.67,141.62,7.0608]
[1724295929571,13.39,141.67,141.63,7.0603]
[1724295929960,20.4486,141.67,141.62,7.0611]
[1724295933413,13.39,141.67,141.61,17.653]
[1724295934784,13.39,141.65,141.61,17.653]
[1724295935965,13.39,141.65,141.61,24.7145]
[1724295937065,13.39,141.63,141.58,17.6577]
[1724295937294,13.39,141.63,141.59,7.0622]
[1724295939086,13.39,141.63,141.6,8.47412696]
[1724295940115,13.39,141.63,141.61,1.41215402]
[1724295940405,13.39,141.63,141.6,7.0619]
[1724295943396,13.39,141.63,141.61,7.0616]
[1724295944280,7.0586,141.67,141.63,7.0605]
[1724295944475,13.6808,141.68,141.64,1.41196685]
[1724295944692,7.0587,141.67,141.64,1.41196685]
[1724295944900,20.0123,141.68,141.64,1.41196685]
[1724295945100,20.0123,141.68,141.64,8.47206685]
[1724295945306,20.0123,141.68,141.65,1.41177051]
[1724295945801,27.0704,141.68,141.64,7.0601]
[1724295948299,20.0123,141.68,141.65,1.41177379]
[1724295948513,20.0123,141.68,141.64,7.0601]
[1724295950110,7.0577,141.69,141.65,1.4117553]
[1724295950329,13.39,141.68,141.65,1.4117553]
[1724295950494,13.39,141.68,141.65,8.47115541]
[1724295952516,13.39,141.68,141.65,7.0595]
[1724295953698,7.0572,141.7,141.65,7.0595]
[1724295953889,13.39,141.69,141.65,7.0595]
[1724295954517,13.39,141.7,141.66,7.059]
[1724295954709,7.0567,141.71,141.67,1.41155928]
[1724295954915,20.4467,141.71,141.67,1.41155928]
[1724295955508,20.4467,141.71,141.67,8.47005928]
[1724295955714,13.39,141.71,141.68,1.41147545]
[1724295956024,7.0563,141.72,141.68,1.41147545]
[1724295957930,35.361,141.73,141.69,7.0575]
[1724295957931,7.0557,141.73,141.69,7.0575]
[1724295958112,20.4457,141.73,141.69,8.46875934]
[1724295958298,7.0557,141.73,141.69,8.46875934]
[1724295958501,7.37649224,141.76,141.67,28.9367]
[1724295958737,15.1717,141.77,141.71,17.6416]
[1724295958738,28.5617,141.77,141.71,17.6416]
[1724295959029,7.0542,141.76,141.72,1.41099847]
[1724295959240,7.0542,141.76,141.71,24.6978]
[1724295959400,35.6154,141.77,141.72,7.0561]
[1724295959608,7.0537,141.77,141.72,8.46709801]
[1724295959803,13.39,141.76,141.72,8.46709801]
[1724295960338,15.1717,141.81,141.74,7.0547]
[1724295960501,13.39,141.8,141.76,7.0541]
[1724295961324,13.39,141.82,141.77,8.46413063]
[1724295961505,13.39,141.8,141.76,24.6893]
[1724295962132,13.39,141.8,141.76,17.6352]
[1724295962318,13.39,141.78,141.76,17.6352]
[1724295962823,28.5746,141.78,141.69,17.644]
[1724295963009,13.39,141.71,141.67,22.6283]
[1724295963399,13.39,141.71,141.66,17.6478]
[1724295963601,13.39,141.69,141.66,17.6478]
[1724295964008,13.39,141.71,141.67,1.41151174]
[1724295964408,40.5966,141.72,141.66,24.7066]
[1724295965425,7.0555,141.74,141.67,1.41145934]
[1724295965610,7.0555,141.74,141.66,17.6478]
[1724295965611,40.5957,141.73,141.66,17.6478]
[1724295965922,40.5957,141.73,141.68,7.0579]
[1724295966139,30.0,141.69,141.68,7.0581]
[1724295966808,30.0,141.69,141.66,24.7065]
[1724295967140,30.0,141.69,141.67,7.0586]
[1724295967338,30.0,141.69,141.66,17.6478]
[1724295967804,30.0,141.69,141.66,24.7069]
[1724295968509,30.0,141.69,141.66,17.6478]
[1724295968702,63.54,141.69,141.64,7.0597]
[1724295968932,63.54,141.69,141.63,15.5698]
[1724295969357,63.54,141.69,141.62,17.6519]
[1724295969584,33.54,141.67,141.62,17.6519]
[1724295969862,33.54,141.65,141.6,7.0617]
[1724295970029,30.0,141.66,141.61,7.0615]
[1724295970246,30.0,141.66,141.62,7.0611]
[1724295970450,30.0,141.66,141.63,1.41192178]
[1724295970754,30.0,141.64,141.63,1.41192178]
[1724295971265,30.0,141.64,141.63,8.47252178]
[1724295971438,30.0,141.64,141.63,7.0606]
[1724295972137,30.0,141.64,141.63,52.0606]
[1724295973635,30.0,141.64,141.63,52.18609]
[1724295974055,46.7045,141.71,141.63,52.18609]
[1724295974262,46.7045,141.71,141.66,7.059]
[1724295974561,30.0,141.67,141.66,7.059]
[1724295975363,15.7276,141.72,141.67,7.0582]
[1724295976063,15.7276,141.72,141.68,7.0581]
[1724295976757,7.0551,141.74,141.69,7.0575]
[1724295978760,40.5956,141.73,141.67,7.0581]
[1724295979073,7.0563,141.72,141.67,7.0581]
[1724295979456,40.5957,141.73,141.67,7.0581]
[1724295980070,40.5957,141.73,141.68,7.058]
[1724295981086,33.54,141.73,141.66,62.77229]
[1724295981245,55.8528,141.75,141.69,17.6441]
[1724295981437,62.9075,141.75,141.7,8.46792356]
[1724295981641,56.8967,141.75,141.71,1.41115171]
[1724295982460,33.54,141.75,141.71,8.46775171]
[1724295982753,33.54,141.75,141.72,1.41107243]
[1724295983867,40.5937,141.77,141.72,8.46717243]
[1724295984071,33.54,141.77,141.73,7.0555]
[1724295984370,33.54,141.77,141.74,8.46601984]